Workbook

Sheet Projeções
B1: Parâmetros para análise de sensibilidade
B3: Variável | C3: Pessimista | D3: Esperada | E3: Otimista
B4: Tamanho de mercado | C4: 5000 | D4: 10000 | E4: 20000
B5: Participação no mercado | C5: 0.2 | D5: 0.3 | E5: 0.5
B6: Preço | C6: 1.9 | D6: 2 | E6: 2.2
B7: Custo variável por unidade | C7: 1.2 | D7: 1 | E7: 0.8
B8: Custo fixo | C8: 1891 | D8: 1791 | E8: 1741
B9: Investimento | C9: 1900 | D9: 1500 | E9: 1000

Sheet Análise de sensibilidade
B2: Fluxo de caixa | G2: ANÁLISE DE SENSIBILIDADE
B4: Item | C4: Ano 1 | D4: Anos 2 a 6 | G4: Variável | H4: Projeção
B5: Receitas | D5: =mercado*participacao*preço -> 6000 | H5: Pessimista | I5: Esperada | J5: Otimista
B6: Custos variáveis | D6: =CVM*mercado*participacao -> 3000 | G6: Tamanho de mercado | H6: -1801.895088 | I6: 1516.738459 | J6: 8154.005553
B7: Custo fixos | D7: =CF -> 1791 | G7: Participação no mercado | H7: -695.6839058 | I7: 1516.738459 | J7: 5941.583188
B8: Depreciação | D8: =Investimento/anos -> 300 | G8: Preço | H8: 853.0117495 | I8: 1516.738459 | J8: 2844.191878
B9: Lucro antes do imposto | D9: =D5-SUM(D6:D8) -> 909 | G9: Custo variável por unidade | H9: 189.2850401 | I9: 1516.738459 | J9: 2844.191878
B10: Imposto (T=0,34) | D10: =tx_imp*D9 -> 309.06 | G10: Custo fixo | H10: 1295.496222 | I10: 1516.738459 | J10: 1627.359577
B11: Lucro líquido | D11: =D9-D10 -> 599.94 | G11: Investimento | H11: 1207.917078 | I11: 1516.738459 | J11: 1902.765186
B12: +depreciação | C12: =C8 -> 0 | D12: =D8 -> 300
B13: -investimento | C13: =Investimento -> 1500
B14: Fluxo de caixa | C14: =C11+C12-C13 -> -1500 | D14: =D11+D12-D13 -> 899.94
B16: VPL (ano 1) | C16: =C14+PV(r_,5,-D14) -> 1516.738459
B21: Parâmetros para análise de sensibilidade
B23: Variável | C23: Projecao | D23: Valor
B24: Tamanho de mercado | C24: Esperada | D24: =VLOOKUP(B24,projeções,MATCH('Análise de sensibilidade'!C24,Projeções!$C$3:$E$3,0)+1,) -> 10000
B25: Participação no mercado | C25: Esperada | D25: =VLOOKUP(B25,projeções,MATCH('Análise de sensibilidade'!C25,Projeções!$C$3:$E$3,0)+1,) -> 0.3
B26: Preço | C26: Esperada | D26: =VLOOKUP(B26,projeções,MATCH('Análise de sensibilidade'!C26,Projeções!$C$3:$E$3,0)+1,) -> 2
B27: Custo variável por unidade | C27: Esperada | D27: =VLOOKUP(B27,projeções,MATCH('Análise de sensibilidade'!C27,Projeções!$C$3:$E$3,0)+1,) -> 1
B28: Custo fixo | C28: Esperada | D28: =VLOOKUP(B28,projeções,MATCH('Análise de sensibilidade'!C28,Projeções!$C$3:$E$3,0)+1,) -> 1791
B29: Investimento | C29: Esperada | D29: =VLOOKUP(B29,projeções,MATCH('Análise de sensibilidade'!C29,Projeções!$C$3:$E$3,0)+1,) -> 1500
B31: Alíquota de imposto | D31: 0.34
B32: taxa de desconto | D32: 0.15
B33: anos | D33: 5
B34: Custo anual equivalente do investimento
B35: CAE = | C35: =PMT(r_,5,-Investimento) -> 447.4733287

Sheet Análise de break even
B2: Break even contábil
B4: q* | C4: =(CF+depreciação)/(preço-CVM) -> 2091
B7: Break even financeiro
B9: q* | C9: =CEILING((cae+CF*(1-tx_imp)-depreciação*tx_imp)/((preço-CVM)*(1-tx_imp)),1) -> 2315
